[Event "TUR-ch U13-18 Open 2023"]
[Site "Antalya"]
[Date "2023.01.24"]
[Round "5"]
[White "Danaci, Ege"]
[Black "Kocer, Ahmet Doruk"]
[Result "1-0"]
[ECO "B28"]
[WhiteElo "2088"]
[BlackElo "1663"]
[Annotator "TA"]
[PlyCount "40"]
[EventDate "2023.01.17"]
[EventType "swiss"]
[EventCountry "TUR"]
[SourceTitle "playchess.com"]
[Source "ChessBase"]
[SourceQuality "1"]
[TimeControl "5400+30"]

{[%evp 9,40,3,6,-19,0,-66,-19,-18,-13,-56,70,55,125,78,146,79,114,92,97,98,101,102,281,270,320,317,702,692,785,764,789,750,745]} 1. e4 {[%emt 0:01:00]} c5 {[%emt 0:02:00]} 2. Nf3 {[%emt 0:00:00]} a6 {[%emt 0:02:30]} 3. c3 {[%emt 0:01:00][%cal Bc2c3,Bc3c4][%mdl 32]} Nf6 {[%emt 0:02:30]} 4. e5 {[%emt 0:08:30]} Nd5 {[%emt 0:00:30]} 5. c4 {[%emt 0:15:30]} Nb4 {[%emt 0:13:30]} 6. d4 {[%emt 0:04:30] B28: Sicilian: 2 Nf3 a6 (O'Kelly Variation).} cxd4 {[%emt 0:00:30] [#]} 7. Bf4 $146 {[%emt 0:00:30]} (7. Nxd4 $11 d6 8. Qa4+ N8c6 9. Nxc6 Nxc6 10. exd6) ({Predecessor:} 7. Nxd4 Qa5 8. Nc3 Qxe5+ 9. Be2 Qxd4 10. Qb3 e6 11. Be3 Qe5 12. Na4 N8c6 13. a3 b5 {0-1 Kucza,K (2032)-Sergeev,V (2421) Guben op 17th 2014 (3)}) 7... g6 {[%emt 0:00:30]} (7... Qa5 $15 8. Bd2 N8c6) 8. Nxd4 $11 {[%emt 0:06:30] The position is equal.} (8. Qxd4 $2 {perishes.} Nc2+ 9. Ke2 Nxd4+ $19) 8... Bg7 {[%emt 0:17:30]} 9. Nc3 {[%emt 0:01:30]} N4c6 {[%emt 0:18:30]} (9... d6 $1 $15) 10. Nf3 $14 {[%emt 0:01:30]} Qa5 {[%emt 0:15:30]} (10... d6 $14) 11. Qd5 {[%emt 0:04:30]} (11. Qa4 $142) 11... Qc7 {[%emt 0:15:00]} ({Black should try} 11... Qb4) 12. Qe4 {[%emt 0:02:30] White is much more active.} (12. h4 $142) 12... e6 {[%emt 0:01:24]} 13. Be2 {[%emt 0:01:30]} b6 {[%emt 0:02:02]} 14. O-O {[%emt 0:01:30]} Bb7 {[%emt 0:01:40]} 15. Qe3 {[%emt 0:00:30] Ne4 would be deadly.} g5 $2 {[%emt 0:01:40] Loses the game.} 16. Bg3 {[%emt 0:00:30] Hoping for Ne4.} ({Not} 16. Bxg5 Nxe5 17. Rad1 Bxf3 $16) 16... h6 {[%emt 0:00:17] [#]} 17. Ne4 $1 {[%emt 0:02:30]} Nxe5 $2 {[%emt 0:02:32]} (17... Ne7 18. Nd6+ Kf8) 18. Nxe5 $18 {[%emt 0:00:30] White is clearly winning.} Bxe5 {[%emt 0:00:55]} 19. Nf6+ {[%emt 0:00:30][%mdl 64] Pin} Ke7 {[%emt 0:00:25]} 20. Bxe5 {[%emt 0:00:30]} d6 {[%emt 0:00:07] Weighted Error Value: White=0.23 (precise) /Black=0.53} 1-0

[Event "TUR-ch U13-18 Open 2023"]
[Site "Antalya"]
[Date "2023.01.24"]
[Round "5"]
[White "Topuz, Mirac Melih"]
[Black "Turk, Talha Gunes"]
[Result "1-0"]
[ECO "A08"]
[WhiteElo "2071"]
[BlackElo "1657"]
[Annotator "TA"]
[PlyCount "67"]
[EventDate "2023.01.17"]
[EventType "swiss"]
[EventCountry "TUR"]
[SourceTitle "playchess.com"]
[Source "ChessBase"]
[SourceQuality "1"]
[TimeControl "5400+30"]

{[%evp 14,67,0,0,32,-30,105,83,91,49,82,-3,18,-21,0,-18,-2,-27,22,17,43,37,106,49,49,44,56,47,44,42,135,136,137,133,145,147,500,519,607,593,567,572,1250,1224,1202,1192,1122,1127,29992,29993,29993,29994,29995,29994,29997,29998]} 1. Nf3 {[%emt 0:05:00]} d5 {[%emt 0:02:00]} 2. d3 {[%emt 0:02:30]} Nf6 {[%emt 0:00:30]} 3. g3 {[%emt 0:00:30]} e6 {[%emt 0:00:30]} 4. Bg2 {[%emt 0:00:00]} Bd6 {[%emt 0:00:30]} 5. Nbd2 {[%emt 0:00:00]} c5 {[%emt 0:01:30]} 6. O-O {[%emt 0:00:30]} O-O {[%emt 0:00:30]} 7. e4 {[%emt 0:00:30]} Nc6 {[%emt 0:00:30]} 8. Re1 {[%emt 0:00:00]} Nd7 {[%emt 0:00:30] A08: King's Indian Attack.} 9. Nf1 {[%emt 0:01:00]} (9. a3 $14) 9... f5 {[%emt 0:01:30]} (9... d4 $1 $11) 10. exd5 {[%emt 0:04:30]} exd5 {[%emt 0:00:30] [#] White is better.} 11. Ne3 $146 {[%emt 0:11:30]} ({Predecessor:} 11. d4 Nf6 12. Bg5 Qb6 13. Bxf6 Rxf6 14. dxc5 Qxc5 15. c3 Be6 16. Ng5 Bf7 17. Nxf7 Kxf7 18. Qxd5+ Kg6 19. Ne3 Re8 20. Qxc5 Bxc5 21. Nd5 Rfe6 22. Nf4+ Kf7 23. Rxe6 {1-0 Dragojlovic,A (2400)-Ferrante,F (1490) Nicolo La Rosa op 16th 2008 (6)}) 11... Nf6 {[%emt 0:00:30] [#]} 12. Nd2 {[%emt 0:03:30]} (12. c4 $1 $16) 12... Be6 {[%emt 0:09:30]} (12... Bc7 $5 {[%cal Rf5f4]}) 13. f4 {[%emt 0:02:30]} Qd7 {[%emt 0:00:30]} 14. Nf3 {[%emt 0:00:30]} Rfe8 {[%emt 0:04:30]} 15. b3 {[%emt 0:23:30]} (15. Ng5 $5 {[%cal Rg5e6]}) 15... b5 {[%emt 0:09:30]} (15... d4 $142 16. Nc4 Bd5) 16. Ng5 $11 {[%emt 0:02:30]} Rac8 {[%emt 0:11:30]} (16... d4 {seems wilder.} 17. Nxe6 dxe3 18. Rxe3 Ng4) 17. Nxe6 {[%emt 0:10:30]} Qxe6 {[%emt 0:00:30]} (17... Rxe6 $14 18. Nxd5 (18. Bxd5 Nxd5 19. Nxd5 Rxe1+ 20. Qxe1 Re8 $11) 18... Be5 19. fxe5 (19. Rxe5 Nxe5 20. c4 Nc6 $15) 19... Nxd5) 18. Bb2 {[%emt 0:00:30]} (18. Bd2 $16) 18... d4 $14 {[%emt 0:00:00] [#]} 19. Nd5 {[%emt 0:00:00]} Qxe1+ {[%emt 0:08:00]} 20. Qxe1 {[%emt 0:00:00]} Rxe1+ {[%emt 0:00:30]} 21. Rxe1 {[%emt 0:00:30] Hoping for Nxf6+.} Kf7 {[%emt 0:00:30] [#]} (21... Ne8 $1 $14) 22. Nxf6 $1 $16 {[%emt 0:00:30]} Kxf6 {[%emt 0:00:30]} 23. Bd5 {[%emt 0:00:30] Black must now prevent Re6+.} Nd8 {[%emt 0:00:30] Inhibits Re6+.} 24. c3 {[%emt 0:00:30] And now Re8 would win. White is more active.} g5 $2 {[%emt 0:00:30][%mdl 8192] This costs Black the game.} (24... Rc7 $16 {is more resistant.}) 25. cxd4 $18 {[%emt 0:00:30]} cxd4 {[%emt 0:00:30]} 26. Bxd4+ {[%emt 0:00:30]} Kg6 {[%emt 0:14:30]} 27. Re8 {[%emt 0:04:30] White threatens Rg8+ and mate.} gxf4 {[%emt 0:04:30]} 28. Rg8+ {[%emt 0:00:30]} Kh6 {[%emt 0:00:30]} 29. Bg7+ {[%emt 0:01:30] This pair of bishops is nice.} ({Weaker is} 29. Bxa7 Rc1+ 30. Kg2 Nc6 $16) 29... Kh5 {[%emt 0:00:30]} 30. Bf6 {[%emt 0:00:30] White wants to mate with Bf3+.} Rc1+ {[%emt 0:02:30]} 31. Kg2 {[%emt 0:00:00] White mates.} Ne6 {[%emt 0:01:30]} 32. Bxe6 {[%emt 0:00:00]} f3+ {[%emt 0:00:30]} 33. Kxf3 {[%emt 0:00:30]} Rc7 {[%emt 0:00:30]} 34. g4+ {[%emt 0:00:30] Weighted Error Value: White=0.17 (very precise) /Black=0.85} 1-0

[Event "TUR-ch U13-18 Open 2023"]
[Site "Antalya"]
[Date "2023.01.24"]
[Round "5"]
[White "Caliskan, Seha"]
[Black "Temizer, Umut"]
[Result "1/2-1/2"]
[ECO "D36"]
[WhiteElo "1954"]
[BlackElo "1989"]
[Annotator "TA"]
[PlyCount "42"]
[EventDate "2023.01.17"]
[EventType "swiss"]
[EventCountry "TUR"]
[SourceTitle "playchess.com"]
[Source "ChessBase"]
[SourceQuality "1"]
[TimeControl "5400+30"]

{[%evp 20,42,31,18,33,8,10,2,2,9,12,12,14,0,0,-5,-9,-14,-13,-14,-14,-10,-12,-218,-33]} 1. d4 d5 2. c4 e6 3. Nc3 Nf6 4. cxd5 exd5 5. Bg5 Be7 6. e3 c6 7. Bd3 Nbd7 8. Nge2 Nh5 9. Bxe7 Qxe7 10. Qc2 Nb6 11. O-O ({Much worse is} 11. Bxh7 g6 12. Bxg6 fxg6 13. Qxg6+ Kd8 $17) 11... g6 {D36: Queen's Gambit Declined: Exchange Variation: Main line (5 Bg5 c6 6 Qc2).} 12. b3 {[#]} O-O $146 ({Predecessor:} 12... Ng7 13. Rfc1 Bf5 14. Nf4 O-O 15. Nce2 Nc8 16. Ng3 Bxd3 17. Nxd3 Ne6 18. Nc5 Nd6 19. Re1 Rfe8 20. Rac1 Kg7 21. Qb2 f6 {½-½ Holub,A (1817)-Missethan,M (1991) St Veit op 41st 2022 (9)}) 13. Qd2 Re8 {The position is equal.} 14. Rae1 Ng7 15. Nc1 {[%cal Be2c1,Bc1d3,Bd3f4][%mdl 32]} Bf5 16. Bxf5 Nxf5 17. Nd3 Qg5 18. Nf4 Rad8 19. Nce2 Nc8 20. Nh3 Qf6 21. f3 $2 {[#]} (21. Nhf4 $11 {and White stays safe.}) 21... h5 $2 {Weighted Error Value: White=0.32/Black=0.00 (flawless)} ({Not} 21... Rxe3 22. g4 Rxe2 23. Qxe2 Nxd4 24. Qe3 $15) ({Better is} 21... Nxe3 $19 22. Rf2 Nf5) 1/2-1/2

[Event "TUR-ch U13-18 Open 2023"]
[Site "Antalya"]
[Date "2023.01.24"]
[Round "5"]
[White "Durucay, Uygar"]
[Black "Kara, Goktan Can"]
[Result "1-0"]
[ECO "D10"]
[WhiteElo "1926"]
[BlackElo "1755"]
[Annotator "TA"]
[PlyCount "41"]
[EventDate "2023.01.17"]
[EventType "swiss"]
[EventCountry "TUR"]
[SourceTitle "playchess.com"]
[Source "ChessBase"]
[SourceQuality "1"]
[TimeControl "5400+30"]

{[%evp 23,41,25,45,22,31,36,104,89,1781,447,29991,29992,29992,29993,29993,29994,29994,29995,29998,29999]} 1. d4 {[%emt 0:05:00]} d5 {[%emt 0:01:00]} 2. c4 {[%emt 0:00:30]} c6 {[%emt 0:00:30]} 3. cxd5 {[%emt 0:00:30]} cxd5 {[%emt 0:00:00]} 4. Bf4 {[%emt 0:00:00]} Nf6 {[%emt 0:00:00]} 5. e3 {[%emt 0:00:00]} a6 {[%emt 0:00:30]} 6. Bd3 {[%emt 0:00:00]} e6 {[%emt 0:00:30]} 7. Nc3 {[%emt 0:00:00]} Bd6 {[%emt 0:00:00]} 8. Bxd6 {[%emt 0:00:30]} Qxd6 {[%emt 0:00:00]} 9. f4 {[%emt 0:00:30]} Nc6 {[%emt 0:01:30]} 10. Nf3 {[%emt 0:00:30]} b5 {[%emt 0:03:30]} 11. O-O {[%emt 0:01:30][%cal Bh1f1,Bf1f3,Bf3h3][%mdl 32]} Bb7 {[%emt 0:01:30]} 12. Ne5 {[%emt 0:00:30]} O-O 13. Rf3 {[%emt 0:00:30] D10: Slav Defence: 3 cxd5 (without early Nf3) and 3 Nc3.} Nb4 {[%emt 0:02:00]} 14. Bb1 {[%emt 0:00:30][%cal Bd3b1,Bb1h7,Bh7g6,Bg6f5][%mdl 32]} Ne4 {[%emt 0:02:30]} (14... Nc6 $14) 15. a3 $16 {[%emt 0:00:30] Rh3 is the strong threat. White is better.} (15. Rh3 {seems wilder.} g6 16. Qg4 Qe7 17. a3) 15... Nxc3 $2 {[%emt 0:00:30][%mdl 8192] [#]} (15... Nc6 $16) 16. bxc3 $146 {[%emt 0:00:00]} (16. Bxh7+ $142 Kh8 17. bxc3) ({Predecessor:} 16. Bxh7+ Kh8 17. bxc3 g6 18. Bxg6 fxg6 19. cxb4 Rf6 20. Rg3 Rg8 21. Qg4 Bc6 22. Rh3+ Kg7 23. Qh4 Rff8 24. Qh7+ Kf6 25. Ng4+ Kf5 26. Nh6+ {1-0 Pinto,C (2072)-Araujo,H (2172) Joao Pessoa Fischer Memorial 7th 2016 (5)}) 16... Nc6 {[%emt 0:00:00] [#]} (16... f6 $18 17. Rh3 (17. axb4 fxe5 18. fxe5 Qe7 $16) 17... h6 18. axb4 fxe5 19. fxe5 (19. dxe5 Qc6 $18) 19... Qc7) 17. Bxh7+ $1 {[%emt 0:00:00][%mdl 576] Decoy. White mates.} Kh8 {[%emt 0:01:00]} 18. Rh3 {[%emt 0:00:30]} g6 {[%emt 0:00:30]} 19. Bxg6+ {[%emt 0:00:30]} Kg7 {[%emt 0:00:30] [#]} 20. Qg4 $1 {[%emt 0:00:00]} Qxe5 {[%emt 0:01:30]} (20... Rg8 21. Bxf7+) 21. Bf5+ {[%emt 0:00:00] White took control after the opening.   Weighted Error Value: White=0.73/Black=0.76} 1-0

[Event "TUR-ch U13-18 Open 2023"]
[Site "Antalya"]
[Date "2023.01.24"]
[Round "5"]
[White "Anacak, Hasan Gunes"]
[Black "Yildirim, Kemal"]
[Result "1-0"]
[ECO "C11"]
[WhiteElo "1898"]
[BlackElo "1804"]
[Annotator "NA RC COMBH"]
[PlyCount "77"]
[EventDate "2023.01.17"]
[EventType "swiss"]
[EventCountry "TUR"]
[SourceTitle "playchess.com"]
[Source "ChessBase"]
[SourceQuality "1"]
[TimeControl "5400+30"]

1. e4 {[%emt 0:04:00]} e6 {[%emt 0:01:00]} 2. d4 {[%emt 0:00:30]} d5 {[%emt 0:00:30]} 3. Nc3 {[%emt 0:01:30]} Nf6 {[%emt 0:00:30]} 4. e5 {[%emt 0:01:30]} Nfd7 {[%emt 0:00:30]} 5. f4 {[%emt 0:00:30]} c5 {[%emt 0:00:30]} 6. Nf3 {[%emt 0:00:30]} Nc6 {[%emt 0:00:00]} 7. Be3 {[%emt 0:00:00]} cxd4 {[%emt 0:05:00]} 8. Nxd4 {[%emt 0:00:30]} Qb6 {[%emt 0:00:30]} 9. Qd2 {[%emt 0:12:30]} Qxb2 {[%emt 0:00:30]} 10. Rb1 {[%emt 0:00:30]} Qa3 {[%emt 0:00:00]} 11. Bb5 {[%emt 0:07:30]} Nxd4 {[%emt 0:00:00]} 12. Bxd4 {[%emt 0:10:30]} a6 {[%emt 0:00:30]} 13. Bxd7+ {[%emt 0:00:30]} Bxd7 {[%emt 0:00:30]} 14. Rb3 {[%emt 0:00:30]} Qe7 {[%emt 0:00:30]} 15. Rxb7 {[%emt 0:00:30]} Qd8 {[%emt 0:00:30]} 16. Bb6 {[%emt 0:26:30]} Qc8 {[%emt 0:02:30]} 17. Rc7 {[%emt 0:02:30]} Qd8 {[%emt 0:01:30]} 18. Qd4 {[%emt 0:02:30]} Ba3 {[%emt 0:05:30]} 19. Nb1 {[%emt 0:03:30] 19.0-0 is the recent fashion.} Be7 {[%emt 0:07:30]} 20. Rb7 {[%emt 0:05:35]} Qc8 {[%emt 0:00:30]} 21. Rc7 {[%emt 0:00:20]} Qd8 {[%emt 0:01:30] [#]} 22. Rf1 $146 {[%emt 0:04:23]} ({Predecessor:} 22. c4 O-O 23. cxd5 exd5 24. Nc3 Rc8 25. Rxc8 Qxc8 26. O-O Qc6 27. Nxd5 Ba3 28. Rf3 Qc1+ 29. Rf1 Qc6 30. Rf3 Qc1+ 31. Rf1 Qc6 {½-½ So,W (2778)-Grischuk,A (2742) Chess.com Rapid Wk10 Swiss 2022 (6)}) 22... O-O {[%emt 0:04:30]} 23. c4 {[%emt 0:00:30]} Qe8 $11 {[%emt 0:12:30]} ({Better is} 23... Rc8 $1 $15 24. Rxc8 Qxc8) 24. cxd5 {[%emt 0:01:19]} exd5 25. Nc3 Bb5 26. Rf3 Bc4 27. Kf2 Rb8 28. Bc5 Bxc5 29. Rxc5 Rb2+ 30. Kg1 Qb8 31. h3 Bxa2 32. Rg3 Rb4 33. Qf2 Rb2 34. Qd4 Rb4 35. Qf2 Rb2 36. Qe3 Rd8 37. f5 Qb6 38. Na4 Rb1+ 39. Kh2 1-0

[Event "TUR-ch U13-18 Open 2023"]
[Site "Antalya"]
[Date "2023.01.24"]
[Round "5"]
[White "Celik, Ege Yigit"]
[Black "Dirikolu, Deniz"]
[Result "1/2-1/2"]
[ECO "A21"]
[WhiteElo "1891"]
[BlackElo "1868"]
[Annotator "NA RC COMBH"]
[PlyCount "64"]
[EventDate "2023.01.17"]
[EventType "swiss"]
[EventCountry "TUR"]
[SourceTitle "playchess.com"]
[Source "ChessBase"]
[SourceQuality "1"]
[TimeControl "5400+30"]

1. c4 {[%emt 0:01:00]} e5 {[%emt 0:01:00]} 2. Nc3 {[%emt 0:00:30]} Bb4 {[%emt 0:00:30]} 3. Nd5 {[%emt 0:00:30]} a5 {[%emt 0:00:00]} 4. a3 {[%emt 0:00:00]} Bc5 {[%emt 0:00:00]} 5. b4 {[%emt 0:00:00]} axb4 {[%emt 0:05:30]} 6. Bb2 {[%emt 0:00:30]} Nc6 {[%emt 0:09:30]} 7. axb4 {[%emt 0:02:30]} Rxa1 {[%emt 0:00:30]} 8. Qxa1 {[%emt 0:05:30]} Nxb4 {[%emt 0:00:30]} 9. Nxb4 {[%emt 0:00:30]} Bxb4 {[%emt 0:00:30]} 10. Bxe5 {[%emt 0:00:30]} f6 {[%emt 0:00:30]} 11. Bc3 {[%emt 0:00:30]} Bxc3 {[%emt 0:00:30]} 12. Qxc3 {[%emt 0:00:30]} Ne7 {[%emt 0:00:30]} 13. Nf3 {[%emt 0:02:30]} d5 {[%emt 0:00:30]} 14. e3 {[%emt 0:00:30]} Be6 {[%emt 0:00:30]} 15. c5 {[%emt 0:06:30]} O-O {[%emt 0:02:30]} 16. Be2 {[%emt 0:00:30]} Qd7 {[%emt 0:00:30]} 17. O-O {[%emt 0:01:30]} Bg4 {[%emt 0:01:30]} 18. Nd4 {[%emt 0:02:30]} Bxe2 {[%emt 0:00:30]} 19. Nxe2 {[%emt 0:00:30]} Ra8 {[%emt 0:00:30]} 20. Rb1 {[%emt 0:00:30]} Qa4 {[%emt 0:00:30]} 21. h3 {[%emt 0:15:30]} b5 {[%emt 0:13:30]} 22. cxb6 {[%emt 0:02:30]} cxb6 {[%emt 0:00:30]} 23. Nd4 {[%emt 0:14:30]} Rc8 {[%emt 0:01:30]} 24. Qb2 {[%emt 0:01:30]} Rb8 {[%emt 0:01:30]} 25. Rc1 {[%emt 0:08:30]} Qd7 {[%emt 0:03:30]} 26. Rc3 {[%emt 0:04:30]} h6 {[%emt 0:01:30]} 27. Qb4 {[%emt 0:00:30]} Kh7 {[%emt 0:05:30]} 28. Nb5 {[%emt 0:09:30]} Rc8 {[%emt 0:01:30]} 29. Rxc8 {[%emt 0:00:30]} Nxc8 {[%emt 0:00:30]} 30. Nc3 {[%emt 0:00:30]} Qc6 {[%emt 0:01:30]} 31. f4 {[%emt 0:02:23]} f5 $16 {[%emt 0:06:30]} ({Black should try} 31... Kg8 $14) 32. Qf8 {[%emt 0:02:04]} Nd6 {[%emt 0:00:30]} 1/2-1/2

[Event "TUR-ch U13-18 Open 2023"]
[Site "Antalya"]
[Date "2023.01.24"]
[Round "5"]
[White "Ergin, Sahin"]
[Black "Ilarslan, Can"]
[Result "1-0"]
[ECO "D18"]
[WhiteElo "1878"]
[BlackElo "1618"]
[Annotator "NA RC COMBH"]
[PlyCount "105"]
[EventDate "2023.01.17"]
[EventType "swiss"]
[EventCountry "TUR"]
[SourceTitle "playchess.com"]
[Source "ChessBase"]
[SourceQuality "1"]
[TimeControl "5400+30"]

1. d4 {[%emt 0:03:00]} d5 {[%emt 0:01:00]} 2. Nf3 {[%emt 0:00:30]} Nf6 {[%emt 0:00:30]} 3. c4 {[%emt 0:00:30]} c6 {[%emt 0:00:30]} 4. Nc3 {[%emt 0:02:30]} dxc4 {[%emt 0:00:30]} 5. a4 {[%emt 0:00:30]} Bf5 {[%emt 0:00:30]} 6. e3 {[%emt 0:01:30]} e6 {[%emt 0:00:30]} 7. Bxc4 {[%emt 0:00:30]} Bb4 {[%emt 0:00:00]} 8. O-O {[%emt 0:00:30]} O-O {[%emt 0:02:00] 8...0-0 is better than 8...Nbd7.} 9. Bd3 {[%emt 0:01:30]} Bg6 {[%emt 0:04:30]} 10. Ne5 {[%emt 0:08:30]} Nbd7 {[%emt 0:14:30]} 11. Nxg6 {[%emt 0:00:30]} hxg6 {[%emt 0:00:30]} 12. Qb3 {[%emt 0:00:30] [#]} Bxc3 $146 {[%emt 0:04:30]} ({Predecessor:} 12... Qb6 13. Rd1 Rfe8 14. Bd2 a5 15. Be1 Rad8 16. Bc4 Qc7 17. h3 Nb6 18. Be2 e5 19. dxe5 Qxe5 {½-½ Trkulja,G (2312)-Stojanovic,D (2464) BIH-chT 8th Banja Vrucica 2009 (9)}) 13. bxc3 {[%emt 0:00:30]} Nc5 {[%emt 0:00:30]} 14. Qc2 {[%emt 0:00:30]} Nxd3 {[%emt 0:00:30]} 15. Qxd3 {[%emt 0:00:30]} Qc7 {[%emt 0:13:30]} 16. e4 {[%emt 0:12:30]} Rfd8 {[%emt 0:13:30]} 17. f3 {[%emt 0:05:30]} c5 {[%emt 0:08:30]} 18. Be3 {[%emt 0:03:30]} Rac8 {[%emt 0:02:30]} 19. Rfc1 {[%emt 0:04:30]} Qa5 {[%emt 0:04:30]} 20. Qb5 {[%emt 0:01:30]} Qxb5 {[%emt 0:00:30]} 21. axb5 {[%emt 0:00:30]} cxd4 {[%emt 0:07:30]} 22. Bxd4 $14 {[%emt 0:10:30]} b6 {[%emt 0:04:01]} 23. Bxf6 {[%emt 0:00:30]} gxf6 {[%emt 0:00:30]} 24. Rxa7 {[%emt 0:00:30]} Rc5 {[%emt 0:00:30]} 25. c4 {[%emt 0:00:30]} Rdc8 {[%emt 0:00:30]} 26. Rb7 {[%emt 0:00:30]} Rxb5 {[%emt 0:00:30]} 27. cxb5 {[%emt 0:00:30]} Rxc1+ {[%emt 0:00:30]} 28. Kf2 {[%emt 0:00:30]} Rb1 {[%emt 0:09:50]} 29. Rxb6 {[%emt 0:00:30]} Kg7 {[%emt 0:00:30]} 30. Rb8 {[%emt 0:00:30]} Rb2+ {[%emt 0:00:30]} 31. Kg3 {[%emt 0:00:30]} Rb1 {[%emt 0:00:30]} 32. b6 {[%emt 0:00:30]} Rb4 {[%emt 0:00:30]} 33. b7 {[%emt 0:00:30]} Rb2 {[%emt 0:00:30]} 34. h4 {[%emt 0:00:30]} Kh7 {[%emt 0:02:15]} 35. Kf4 {[%emt 0:00:30]} Rb3 {[%emt 0:00:30]} 36. g4 {[%emt 0:00:30]} Kg7 {[%emt 0:04:31]} 37. h5 {[%emt 0:00:30]} g5+ {[%emt 0:00:30]} 38. Kg3 {[%emt 0:00:00]} Rb2 {[%emt 0:01:35]} 39. h6+ {[%emt 0:00:00]} Kh7 {[%emt 0:00:30]} 40. Kh3 {[%emt 0:00:30]} Rb3 {[%emt 0:00:00]} 41. Kg2 {[%emt 0:00:30]} Rb6 {[%emt 0:00:29]} 42. Kf2 {[%emt 0:00:00]} Rb3 {[%emt 0:00:32]} 43. Ke2 {[%emt 0:00:00]} Rb5 {[%emt 0:01:04]} 44. Kd3 {[%emt 0:00:00]} Rb1 {[%emt 0:00:30]} 45. Kd4 {[%emt 0:00:00]} Rb5 {[%emt 0:00:28]} 46. Kc4 {[%emt 0:00:00]} Rb1 {[%emt 0:00:30]} 47. Kc5 {[%emt 0:00:00]} Rc1+ {[%emt 0:00:20]} 48. Kd6 {[%emt 0:00:30]} Rb1 {[%emt 0:00:30]} 49. Ke7 {[%emt 0:00:00]} Rb3 {[%emt 0:00:28]} 50. Kxf7 {[%emt 0:00:00]} e5 {[%emt 0:00:19]} 51. Kxf6 {[%emt 0:00:30]} Rxf3+ {[%emt 0:00:03]} 52. Kxe5 {[%emt 0:00:30]} Rb3 {[%emt 0:00:30]} 53. Kd4 {[%emt 0:00:30]} 1-0

[Event "TUR-ch U13-18 Open 2023"]
[Site "Antalya"]
[Date "2023.01.24"]
[Round "5"]
[White "Ozgun, Yigit Deniz"]
[Black "Pirpir, Ozgur Can"]
[Result "1/2-1/2"]
[ECO "C90"]
[WhiteElo "1769"]
[BlackElo "1340"]
[Annotator "NA RC COMBH"]
[PlyCount "96"]
[EventDate "2023.01.17"]
[EventType "swiss"]
[EventCountry "TUR"]
[SourceTitle "playchess.com"]
[Source "ChessBase"]
[SourceQuality "1"]
[TimeControl "5400+30"]

1. e4 {[%emt 0:06:00]} e5 {[%emt 0:01:00]} 2. Nf3 {[%emt 0:00:30]} Nc6 {[%emt 0:00:30]} 3. Bb5 {[%emt 0:00:30]} a6 {[%emt 0:00:00]} 4. Ba4 {[%emt 0:00:00]} Nf6 {[%emt 0:00:00]} 5. O-O {[%emt 0:00:00]} b5 {[%emt 0:00:30]} 6. Bb3 {[%emt 0:00:30]} Be7 {[%emt 0:00:30]} 7. Re1 {[%emt 0:00:30]} d6 {[%emt 0:00:30]} 8. c3 {[%emt 0:00:00]} Na5 {[%emt 0:00:30]} 9. Bc2 {[%emt 0:00:00]} c5 {[%emt 0:00:30]} 10. d3 {[%emt 0:00:00]} O-O {[%emt 0:00:30]} 11. Nbd2 {[%emt 0:00:00]} Re8 {[%emt 0:01:30]} 12. Nf1 {[%emt 0:00:00]} Bf8 {[%emt 0:01:30]} 13. Ng3 {[%emt 0:00:00]} g6 {[%emt 0:02:30]} 14. h3 {[%emt 0:00:30]} Bg7 {[%emt 0:00:30]} 15. Be3 {[%emt 0:01:30]} Qc7 {[%emt 0:00:30]} 16. Qd2 {[%emt 0:02:30]} d5 {[%emt 0:02:30]} 17. Qe2 {[%emt 0:19:30]} dxe4 {[%emt 0:04:30]} 18. dxe4 {[%emt 0:00:30]} Be6 {[%emt 0:00:30]} 19. b3 {[%emt 0:00:30]} h6 {[%emt 0:00:30]} 20. Red1 {[%emt 0:00:30]} Rad8 {[%emt 0:00:30]} 21. Nd2 {[%emt 0:00:30]} Nd7 {[%emt 0:16:30]} 22. Ndf1 {[%emt 0:11:30]} f6 {[%emt 0:07:30]} 23. Nd2 {[%emt 0:04:30]} Rf8 {[%emt 0:02:30]} 24. Nf3 {[%emt 0:03:30]} f5 {[%emt 0:04:30]} 25. Bc1 {[%emt 0:05:30]} f4 {[%emt 0:01:30]} 26. Nf1 {[%emt 0:00:30]} g5 {[%emt 0:05:30]} 27. b4 {[%emt 0:01:30]} cxb4 {[%emt 0:01:30]} 28. cxb4 {[%emt 0:00:30]} Nc4 {[%emt 0:00:30]} 29. Bb3 {[%emt 0:00:30]} Rfe8 {[%emt 0:00:30]} 30. Bb2 {[%emt 0:00:30]} Ndb6 {[%emt 0:00:30]} 31. Rdc1 {[%emt 0:00:30]} Qf7 {[%emt 0:00:30]} 32. Bc3 {[%emt 0:00:30]} Bf6 {[%emt 0:09:30]} 33. Rd1 {[%emt 0:02:30]} h5 {[%emt 0:00:30]} 34. Rxd8 {[%emt 0:00:30]} Rxd8 {[%emt 0:00:30]} 35. Rd1 {[%emt 0:00:30]} Rxd1 {[%emt 0:00:30]} 36. Qxd1 {[%emt 0:00:30]} g4 {[%emt 0:01:30]} 37. hxg4 {[%emt 0:00:30]} hxg4 {[%emt 0:01:30]} 38. Nxe5 {[%emt 0:00:30]} Nxe5 {[%emt 0:06:30]} 39. Bxe5 {[%emt 0:00:30]} Bxb3 {[%emt 0:00:30]} 40. axb3 {[%emt 0:00:30]} Bxe5 {[%emt 0:00:30]} 41. Qd8+ {[%emt 0:00:30]} Kh7 {[%emt 0:00:30]} 42. Qxb6 {[%emt 0:00:00]} g3 {[%emt 0:01:30]} 43. Qd8 {[%emt 0:06:00]} Qa7 {[%emt 0:18:36]} 44. Qh4+ {[%emt 0:02:30]} Kg8 {[%emt 0:03:30]} 45. Qg5+ {[%emt 0:01:30]} Kf8 {[%emt 0:01:57]} 46. Qf5+ {[%emt 0:02:30]} Kg8 {[%emt 0:00:11]} 47. Qe6+ {[%emt 0:04:30]} Kh7 {[%emt 0:02:33]} 48. Qf5+ {[%emt 0:00:30]} Kg8 {[%emt 0:00:30]} 1/2-1/2